[Event "*** Titled Tuesday Blitz"]
[Site "Chess.com"]
[Date "2021.03.30"]
[Round "7"]
[White "gxbg2000"]
[Black "esteban062000"]
[Result "1-0"]
[WhiteElo "1920"]
[BlackElo "2157"]
[TimeControl "180+1"]
[EndTime "11:17:11 PDT"]
[Termination "gxbg2000 won by checkmate"]

1. e4 {[%clk 0:03:00.9]} 1... c5 {[%clk 0:02:59.5]} 2. f4 {[%clk 0:02:59]} 2...
e6 {[%clk 0:02:55.2]} 3. Nf3 {[%clk 0:02:58.6]} 3... d5 {[%clk 0:02:55.4]} 4. e5
{[%clk 0:02:55.5]} 4... g6 {[%clk 0:02:55.3]} 5. c3 {[%clk 0:02:55.2]} 5... h5
{[%clk 0:02:55.2]} 6. Bb5+ {[%clk 0:02:55.5]} 6... Bd7 {[%clk 0:02:55.2]} 7.
Bxd7+ {[%clk 0:02:55.1]} 7... Nxd7 {[%clk 0:02:56.1]} 8. O-O {[%clk 0:02:55.1]}
8... Bg7 {[%clk 0:02:55.6]} 9. Kh1 {[%clk 0:02:55.1]} 9... Nh6 {[%clk
0:02:55.8]} 10. d4 {[%clk 0:02:55]} 10... cxd4 {[%clk 0:02:54.8]} 11. cxd4
{[%clk 0:02:54.8]} 11... Nf5 {[%clk 0:02:54.6]} 12. Nc3 {[%clk 0:02:43.9]} 12...
Qb6 {[%clk 0:02:47.7]} 13. Ne2 {[%clk 0:02:31.7]} 13... h4 {[%clk 0:02:28.4]}
14. Qe1 {[%clk 0:02:08.7]} 14... O-O-O {[%clk 0:02:21.6]} 15. Bd2 {[%clk
0:02:04.1]} 15... Rh5 {[%clk 0:02:12.6]} 16. Rc1+ {[%clk 0:02:02.4]} 16... Kb8
{[%clk 0:02:11.5]} 17. Rc2 {[%clk 0:01:59.2]} 17... Rdh8 {[%clk 0:02:09.5]} 18.
h3 {[%clk 0:01:49.3]} 18... f6 {[%clk 0:01:57.6]} 19. Ba5 {[%clk 0:01:41]} 19...
Qa6 {[%clk 0:01:50.8]} 20. Bc7+ {[%clk 0:01:37.7]} 20... Ka8 {[%clk 0:01:49.2]}
21. Bd6 {[%clk 0:01:36.5]} 21... Ne3 {[%clk 0:01:43.9]} 22. Qc1 {[%clk
0:01:27.4]} 22... Nxc2 {[%clk 0:01:30.5]} 23. Qxc2 {[%clk 0:01:26.8]} 23... Qc4
{[%clk 0:01:24.8]} 24. Qd2 {[%clk 0:01:23.4]} 24... fxe5 {[%clk 0:01:17.4]} 25.
Rc1 {[%clk 0:01:22.2]} 25... Qxa2 {[%clk 0:01:13]} 26. dxe5 {[%clk 0:01:04.5]}
26... Nb6 {[%clk 0:01:10]} 27. Ned4 {[%clk 0:00:49.5]} 27... Nc4 {[%clk
0:01:01.8]} 28. Qd1 {[%clk 0:00:43.7]} 28... Qxb2 {[%clk 0:00:37.6]} 29. Nxe6
{[%clk 0:00:43]} 29... Ne3 {[%clk 0:00:35.3]} 30. Nc7+ {[%clk 0:00:38.4]} 30...
Kb8 {[%clk 0:00:34.1]} 31. Ne8+ {[%clk 0:00:35.4]} 31... Ka8 {[%clk 0:00:33.3]}
32. Rc8# {[%clk 0:00:35.5]} 1-0

[Event "*** Titled Tuesday Blitz"]
[Site "Chess.com"]
[Date "2021.03.30"]
[Round "7"]
[White "MIJuanReyesRosa"]
[Black "ahmad_alkhatib11"]
[Result "0-1"]
[WhiteElo "2100"]
[BlackElo "2365"]
[TimeControl "180+1"]
[EndTime "11:17:11 PDT"]
[Termination "ahmad_alkhatib11 won by checkmate"]

1. d4 {[%clk 0:02:57.9]} 1... Nf6 {[%clk 0:02:58.7]} 2. Nf3 {[%clk 0:02:57.6]}
2... g6 {[%clk 0:02:58.4]} 3. c4 {[%clk 0:02:57.7]} 3... Bg7 {[%clk 0:02:58.2]}
4. Nc3 {[%clk 0:02:57.8]} 4... O-O {[%clk 0:02:51.5]} 5. e4 {[%clk 0:02:57.6]}
5... d6 {[%clk 0:02:32.6]} 6. Be2 {[%clk 0:02:57.5]} 6... Na6 {[%clk 0:02:31.9]}
7. O-O {[%clk 0:02:56.5]} 7... e5 {[%clk 0:02:32]} 8. Re1 {[%clk 0:02:55.3]}
8... Bg4 {[%clk 0:02:30.8]} 9. Be3 {[%clk 0:02:42.5]} 9... Bxf3 {[%clk
0:02:27.6]} 10. Bxf3 {[%clk 0:02:40.3]} 10... exd4 {[%clk 0:02:28.5]} 11. Bxd4
{[%clk 0:02:39]} 11... Nb4 {[%clk 0:02:28.7]} 12. Rc1 {[%clk 0:02:23.5]} 12...
Nc6 {[%clk 0:02:28.3]} 13. Be3 {[%clk 0:02:19.6]} 13... Nd7 {[%clk 0:02:21.3]}
14. Be2 {[%clk 0:02:11.5]} 14... Nc5 {[%clk 0:02:16.1]} 15. f3 {[%clk
0:02:06.3]} 15... Ne6 {[%clk 0:02:15]} 16. Qd2 {[%clk 0:01:58.8]} 16... Ncd4
{[%clk 0:02:14.9]} 17. Bf1 {[%clk 0:01:55.1]} 17... f5 {[%clk 0:01:43.7]} 18.
exf5 {[%clk 0:01:46.6]} 18... Rxf5 {[%clk 0:01:22.3]} 19. Kh1 {[%clk 0:01:34.7]}
19... Rh5 {[%clk 0:01:17.1]} 20. Rcd1 {[%clk 0:00:59.3]} 20... Qh4 {[%clk
0:01:04.3]} 21. Bg1 {[%clk 0:00:57]} 21... Nf5 {[%clk 0:00:58.3]} 22. Ne4 {[%clk
0:00:53.4]} 22... Qxe4 {[%clk 0:00:37.7]} 23. Bxa7 {[%clk 0:00:36.6]} 23... Qh4
{[%clk 0:00:26.3]} 24. Bg1 {[%clk 0:00:33]} 24... Ng3# {[%clk 0:00:24.3]} 0-1

[Event "*** Titled Tuesday Blitz"]
[Site "Chess.com"]
[Date "2021.03.30"]
[Round "7"]
[White "kamilianin235"]
[Black "sau6on"]
[Result "1-0"]
[WhiteElo "2272"]
[BlackElo "2355"]
[TimeControl "180+1"]
[EndTime "11:17:15 PDT"]
[Termination "kamilianin235 won by checkmate"]

1. e4 {[%clk 0:03:00.9]} 1... c5 {[%clk 0:02:48]} 2. Nf3 {[%clk 0:03:00.2]} 2...
d6 {[%clk 0:02:47.6]} 3. d4 {[%clk 0:03:00.2]} 3... cxd4 {[%clk 0:02:48.1]} 4.
Nxd4 {[%clk 0:03:00.4]} 4... Nf6 {[%clk 0:02:48.7]} 5. Nc3 {[%clk 0:03:00.3]}
5... Nc6 {[%clk 0:02:48.6]} 6. Bc4 {[%clk 0:02:59.9]} 6... Qb6 {[%clk
0:02:47.7]} 7. Nb3 {[%clk 0:02:54.2]} 7... e6 {[%clk 0:02:45.7]} 8. O-O {[%clk
0:02:53.2]} 8... a6 {[%clk 0:02:45.2]} 9. Be3 {[%clk 0:02:52.4]} 9... Qc7 {[%clk
0:02:44.5]} 10. a4 {[%clk 0:02:50.9]} 10... b6 {[%clk 0:02:26.4]} 11. Be2 {[%clk
0:02:47]} 11... Be7 {[%clk 0:02:23.5]} 12. f3 {[%clk 0:02:45.9]} 12... O-O
{[%clk 0:02:22.9]} 13. Kh1 {[%clk 0:02:43.1]} 13... Rd8 {[%clk 0:02:16.2]} 14.
Qe1 {[%clk 0:02:42.2]} 14... d5 {[%clk 0:02:13.6]} 15. exd5 {[%clk 0:02:38.8]}
15... Nxd5 {[%clk 0:02:12.7]} 16. Nxd5 {[%clk 0:02:38.6]} 16... Rxd5 {[%clk
0:02:13.6]} 17. Qf2 {[%clk 0:02:38.6]} 17... Rb8 {[%clk 0:02:11.4]} 18. Bc4
{[%clk 0:02:36.6]} 18... Rd7 {[%clk 0:01:46.3]} 19. Rad1 {[%clk 0:02:31.2]}
19... Ne5 {[%clk 0:01:39.1]} 20. Be2 {[%clk 0:02:28.2]} 20... Qxc2 {[%clk
0:01:29.4]} 21. Nd4 {[%clk 0:02:14.8]} 21... Qxa4 {[%clk 0:01:27.1]} 22. Ra1
{[%clk 0:02:10.7]} 22... Qb4 {[%clk 0:01:22.5]} 23. f4 {[%clk 0:02:09.1]} 23...
Rxd4 {[%clk 0:00:37.8]} 24. fxe5 {[%clk 0:01:50.1]} 24... Rd8 {[%clk 0:00:19.6]}
25. Qxf7+ {[%clk 0:01:48.8]} 25... Kh8 {[%clk 0:00:19.8]} 26. Rf4 {[%clk
0:01:40.2]} 26... Qxb2 {[%clk 0:00:15.4]} 27. Raf1 {[%clk 0:01:39.1]} 27... Bb7
{[%clk 0:00:13.4]} 28. Qxe7 {[%clk 0:01:23]} 28... Bxg2+ {[%clk 0:00:12.3]} 29.
Kxg2 {[%clk 0:01:14.9]} 29... Qxe2+ {[%clk 0:00:12.6]} 30. R1f2 {[%clk
0:01:14.8]} 30... Qxe3 {[%clk 0:00:04.7]} 31. Rf8+ {[%clk 0:01:13.4]} 31... Rxf8
{[%clk 0:00:04.6]} 32. Qxf8+ {[%clk 0:01:11.7]} 32... Rxf8 {[%clk 0:00:04.4]}
33. Rxf8# {[%clk 0:01:11.3]} 1-0

[Event "*** Titled Tuesday Blitz"]
[Site "Chess.com"]
[Date "2021.03.30"]
[Round "7"]
[White "Leo_C"]
[Black "Nozdrachev_Leonid"]
[Result "0-1"]
[WhiteElo "2376"]
[BlackElo "2544"]
[TimeControl "180+1"]
[EndTime "11:17:20 PDT"]
[Termination "Nozdrachev_Leonid won by checkmate"]

1. d4 {[%clk 0:03:00.9]} 1... d6 {[%clk 0:03:00.9]} 2. e4 {[%clk 0:02:59.3]}
2... Nf6 {[%clk 0:03:00.6]} 3. f3 {[%clk 0:02:59.5]} 3... e5 {[%clk 0:03:01.5]}
4. d5 {[%clk 0:02:58.6]} 4... c6 {[%clk 0:03:00.9]} 5. c4 {[%clk 0:02:57.7]}
5... g6 {[%clk 0:02:58.5]} 6. Nc3 {[%clk 0:02:56.4]} 6... Bg7 {[%clk 0:02:58.3]}
7. Bg5 {[%clk 0:02:48.9]} 7... cxd5 {[%clk 0:02:59.2]} 8. cxd5 {[%clk
0:02:43.1]} 8... Qb6 {[%clk 0:02:55.6]} 9. Qd2 {[%clk 0:02:40.8]} 9... O-O
{[%clk 0:02:50.9]} 10. Nge2 {[%clk 0:02:38.1]} 10... Nbd7 {[%clk 0:02:45.3]} 11.
h4 {[%clk 0:02:30.6]} 11... h6 {[%clk 0:02:35.5]} 12. Bxh6 {[%clk 0:02:19.8]}
12... Nc5 {[%clk 0:02:17.7]} 13. Bxg7 {[%clk 0:02:05.5]} 13... Kxg7 {[%clk
0:02:18.6]} 14. h5 {[%clk 0:02:05]} 14... Nxh5 {[%clk 0:02:13.8]} 15. g4 {[%clk
0:01:41.4]} 15... Nf4 {[%clk 0:02:03.7]} 16. Nxf4 {[%clk 0:01:37.5]} 16... exf4
{[%clk 0:02:04.6]} 17. Qh2 {[%clk 0:01:36.7]} 17... Bd7 {[%clk 0:01:45.7]} 18.
Qh6+ {[%clk 0:01:26.7]} 18... Kf6 {[%clk 0:01:45.1]} 19. Qxf4+ {[%clk
0:01:25.5]} 19... Kg7 {[%clk 0:01:43.5]} 20. O-O-O {[%clk 0:00:57.3]} 20... Rh8
{[%clk 0:01:39]} 21. Rxh8 {[%clk 0:00:50.3]} 21... Rxh8 {[%clk 0:01:39.9]} 22.
g5 {[%clk 0:00:50.1]} 22... a5 {[%clk 0:01:20.5]} 23. Qf6+ {[%clk 0:00:46.3]}
23... Kg8 {[%clk 0:01:19.9]} 24. e5 {[%clk 0:00:39.4]} 24... Rh2 {[%clk
0:01:18.3]} 25. Be2 {[%clk 0:00:33.1]} 25... Bf5 {[%clk 0:01:10.6]} 26. Qxd6
{[%clk 0:00:26.7]} 26... Qb3 {[%clk 0:01:05]} 27. Rd2 {[%clk 0:00:08.1]} 27...
Rh1+ {[%clk 0:01:03.1]} 28. Nd1 {[%clk 0:00:08.1]} 28... Qxa2 {[%clk 0:00:57.8]}
29. Qd8+ {[%clk 0:00:05.8]} 29... Kh7 {[%clk 0:00:56.2]} 30. Rc2 {[%clk
0:00:03.2]} 30... Nb3# {[%clk 0:00:55.1]} 0-1

[Event "*** Titled Tuesday Blitz"]
[Site "Chess.com"]
[Date "2021.03.30"]
[Round "7"]
[White "BlackWidow515"]
[Black "rachidhuilda"]
[Result "1/2-1/2"]
[WhiteElo "2181"]
[BlackElo "2279"]
[TimeControl "180+1"]
[EndTime "11:17:20 PDT"]
[Termination "Game drawn by repetition"]

1. d4 {[%clk 0:02:59.5]} 1... Nf6 {[%clk 0:02:50.2]} 2. Nf3 {[%clk 0:02:59]}
2... d5 {[%clk 0:02:48.5]} 3. g3 {[%clk 0:02:59.3]} 3... c6 {[%clk 0:02:48.1]}
4. Bg2 {[%clk 0:02:59.5]} 4... Bf5 {[%clk 0:02:48.7]} 5. O-O {[%clk 0:02:57.7]}
5... e6 {[%clk 0:02:45.7]} 6. Nbd2 {[%clk 0:02:57.7]} 6... h6 {[%clk 0:02:45.3]}
7. b3 {[%clk 0:02:57.8]} 7... Nbd7 {[%clk 0:02:45.3]} 8. Re1 {[%clk 0:02:57.9]}
8... Be7 {[%clk 0:02:45.9]} 9. Nh4 {[%clk 0:02:57.7]} 9... Bh7 {[%clk
0:02:45.8]} 10. Bb2 {[%clk 0:02:57.2]} 10... Ne4 {[%clk 0:02:27.9]} 11. Nxe4
{[%clk 0:02:51.8]} 11... dxe4 {[%clk 0:02:27.5]} 12. d5 {[%clk 0:02:46]} 12...
Bxh4 {[%clk 0:02:25.2]} 13. dxe6 {[%clk 0:02:38.6]} 13... fxe6 {[%clk
0:01:49.9]} 14. gxh4 {[%clk 0:02:36.7]} 14... O-O {[%clk 0:01:42.4]} 15. Qd4
{[%clk 0:02:30.8]} 15... Nf6 {[%clk 0:01:18.3]} 16. Rad1 {[%clk 0:02:26.3]}
16... Qe8 {[%clk 0:01:10.1]} 17. Kh1 {[%clk 0:02:21.4]} 17... Qh5 {[%clk
0:01:06.4]} 18. Bh3 {[%clk 0:02:12.6]} 18... Rae8 {[%clk 0:00:59.5]} 19. Rg1
{[%clk 0:02:04.3]} 19... Qxh4 {[%clk 0:00:32.6]} 20. Rg3 {[%clk 0:01:58]} 20...
Bf5 {[%clk 0:00:20.6]} 21. Bxf5 {[%clk 0:01:51.1]} 21... exf5 {[%clk 0:00:19.7]}
22. Rdg1 {[%clk 0:01:51.2]} 22... Re7 {[%clk 0:00:17.4]} 23. Ba3 {[%clk
0:01:20.5]} 23... Rd7 {[%clk 0:00:14.7]} 24. Qc4+ {[%clk 0:01:18.1]} 24... Rff7
{[%clk 0:00:15.3]} 25. Qe6 {[%clk 0:01:16.3]} 25... Kh7 {[%clk 0:00:11.1]} 26.
Bb2 {[%clk 0:01:14]} 26... Ng4 {[%clk 0:00:09.7]} 27. Rxg4 {[%clk 0:01:03.9]}
27... fxg4 {[%clk 0:00:08.7]} 28. Qxe4+ {[%clk 0:01:04.2]} 28... Kg8 {[%clk
0:00:07.2]} 29. Qe8+ {[%clk 0:01:03.3]} 29... Kh7 {[%clk 0:00:07]} 30. Qe4+
{[%clk 0:01:03.6]} 30... Kg8 {[%clk 0:00:06.4]} 31. Qe8+ {[%clk 0:01:03.3]}
31... Kh7 {[%clk 0:00:06.8]} 32. Qe4+ {[%clk 0:01:03.1]} 1/2-1/2

[Event "*** Titled Tuesday Blitz"]
[Site "Chess.com"]
[Date "2021.03.30"]
[Round "7"]
[White "Chopper1905"]
[Black "gaby_przz"]
[Result "1-0"]
[WhiteElo "2915"]
[BlackElo "2465"]
[TimeControl "180+1"]
[EndTime "11:17:24 PDT"]
[Termination "Chopper1905 won on time"]

1. d4 {[%clk 0:03:00.9]} 1... Nf6 {[%clk 0:02:56.7]} 2. Nf3 {[%clk 0:02:57.5]}
2... g6 {[%clk 0:02:56.2]} 3. g3 {[%clk 0:02:53.6]} 3... Bg7 {[%clk 0:02:56.3]}
4. Bg2 {[%clk 0:02:53.7]} 4... O-O {[%clk 0:02:57.2]} 5. c4 {[%clk 0:02:53.8]}
5... c5 {[%clk 0:02:57.6]} 6. d5 {[%clk 0:02:49.3]} 6... e6 {[%clk 0:02:57.9]}
7. Nc3 {[%clk 0:02:48.9]} 7... exd5 {[%clk 0:02:58.3]} 8. cxd5 {[%clk
0:02:49.8]} 8... d6 {[%clk 0:02:58.9]} 9. O-O {[%clk 0:02:49.9]} 9... Re8 {[%clk
0:02:58.1]} 10. Bf4 {[%clk 0:02:49.8]} 10... Nh5 {[%clk 0:02:50.1]} 11. Bg5
{[%clk 0:02:47.7]} 11... Bf6 {[%clk 0:02:50]} 12. Qd2 {[%clk 0:02:42.8]} 12...
Nd7 {[%clk 0:02:47]} 13. g4 {[%clk 0:02:27.3]} 13... Bxg5 {[%clk 0:02:38.2]} 14.
Nxg5 {[%clk 0:02:28.2]} 14... Nhf6 {[%clk 0:02:37.9]} 15. h3 {[%clk 0:02:24.4]}
15... Ne5 {[%clk 0:02:31.9]} 16. e4 {[%clk 0:02:05.8]} 16... h6 {[%clk 0:01:41]}
17. Nf3 {[%clk 0:02:00.3]} 17... Nxf3+ {[%clk 0:01:37.7]} 18. Bxf3 {[%clk
0:02:01.2]} 18... Kg7 {[%clk 0:01:27.7]} 19. Bg2 {[%clk 0:02:01.2]} 19... g5
{[%clk 0:01:05.3]} 20. f4 {[%clk 0:01:55.9]} 20... Nd7 {[%clk 0:01:04.2]} 21. e5
{[%clk 0:01:38.5]} 21... dxe5 {[%clk 0:00:42.4]} 22. fxg5 {[%clk 0:01:22.8]}
22... Qxg5 {[%clk 0:00:37]} 23. Qf2 {[%clk 0:01:21.9]} 23... Qf4 {[%clk
0:00:29.6]} 24. Qe2 {[%clk 0:01:10.8]} 24... Qd4+ {[%clk 0:00:27.6]} 25. Kh1
{[%clk 0:01:11]} 25... Nf8 {[%clk 0:00:17.4]} 26. Ne4 {[%clk 0:01:05.9]} 26...
Ng6 {[%clk 0:00:08.6]} 27. Rad1 {[%clk 0:01:05.9]} 27... Qa4 {[%clk 0:00:04.3]}
28. Nf6 {[%clk 0:01:05]} 28... Rd8 {[%clk 0:00:02.7]} 29. Nh5+ {[%clk
0:00:52.5]} 29... Kg8 {[%clk 0:00:01.7]} 30. Qe3 {[%clk 0:00:53]} 1-0

[Event "*** Titled Tuesday Blitz"]
[Site "Chess.com"]
[Date "2021.03.30"]
[Round "7"]
[White "xurramid77"]
[Black "BigAl"]
[Result "0-1"]
[WhiteElo "2640"]
[BlackElo "2509"]
[TimeControl "180+1"]
[EndTime "11:17:34 PDT"]
[Termination "BigAl won by resignation"]

1. e4 {[%clk 0:03:00.9]} 1... c6 {[%clk 0:02:59.6]} 2. d4 {[%clk 0:03:00.7]}
2... d5 {[%clk 0:02:59.6]} 3. Nc3 {[%clk 0:03:01.6]} 3... dxe4 {[%clk
0:02:59.7]} 4. Nxe4 {[%clk 0:03:02.5]} 4... Nf6 {[%clk 0:03:00.3]} 5. Ng3 {[%clk
0:03:02.8]} 5... h5 {[%clk 0:03:00]} 6. h4 {[%clk 0:03:03.1]} 6... Bg4 {[%clk
0:02:59.3]} 7. Be2 {[%clk 0:03:03.5]} 7... Bxe2 {[%clk 0:02:55.7]} 8. N1xe2
{[%clk 0:03:02.7]} 8... g6 {[%clk 0:02:55.5]} 9. Bg5 {[%clk 0:02:50.2]} 9... Bg7
{[%clk 0:02:55.3]} 10. O-O {[%clk 0:02:45]} 10... O-O {[%clk 0:02:51.3]} 11. Qd2
{[%clk 0:02:45.2]} 11... Nbd7 {[%clk 0:02:50]} 12. Bh6 {[%clk 0:02:42.9]} 12...
Bxh6 {[%clk 0:02:42.8]} 13. Qxh6 {[%clk 0:02:43.8]} 13... Ng4 {[%clk 0:02:43.3]}
14. Qg5 {[%clk 0:02:31]} 14... e6 {[%clk 0:02:41.1]} 15. Nf4 {[%clk 0:02:19]}
15... Qf6 {[%clk 0:02:11.3]} 16. Rae1 {[%clk 0:02:03]} 16... Rfe8 {[%clk
0:02:02.9]} 17. Ngxh5 {[%clk 0:01:16.3]} 17... Qxg5 {[%clk 0:01:59.3]} 18. hxg5
{[%clk 0:01:16.8]} 18... gxh5 {[%clk 0:01:41.1]} 19. f3 {[%clk 0:01:17.2]} 19...
e5 {[%clk 0:01:34.4]} 20. Nxh5 {[%clk 0:01:17.2]} 20... exd4 {[%clk 0:01:30.2]}
21. fxg4 {[%clk 0:01:15.3]} 21... Re3 {[%clk 0:01:09.4]} 22. Rxe3 {[%clk
0:00:39.1]} 22... dxe3 {[%clk 0:01:09]} 23. Nf6+ {[%clk 0:00:37.9]} 23... Nxf6
{[%clk 0:01:08.9]} 24. gxf6 {[%clk 0:00:37.8]} 24... Rd8 {[%clk 0:00:55.4]} 25.
Re1 {[%clk 0:00:36.3]} 25... Rd2 {[%clk 0:00:55.2]} 26. Rxe3 {[%clk 0:00:36]}
26... Rxc2 {[%clk 0:00:55.1]} 27. Rb3 {[%clk 0:00:35.1]} 27... b5 {[%clk
0:00:52.7]} 28. Kh2 {[%clk 0:00:31.7]} 28... Kh7 {[%clk 0:00:52]} 29. a4 {[%clk
0:00:20.7]} 29... a6 {[%clk 0:00:48.6]} 30. axb5 {[%clk 0:00:20.3]} 30... axb5
{[%clk 0:00:49]} 31. Rc3 {[%clk 0:00:20.9]} 31... Rxc3 {[%clk 0:00:44.2]} 32.
bxc3 {[%clk 0:00:21]} 32... c5 {[%clk 0:00:44.9]} 33. Kg3 {[%clk 0:00:21.9]}
33... b4 {[%clk 0:00:45.5]} 34. cxb4 {[%clk 0:00:21.3]} 34... cxb4 {[%clk
0:00:45.7]} 35. Kf4 {[%clk 0:00:22.2]} 35... b3 {[%clk 0:00:46.3]} 36. Ke5
{[%clk 0:00:23.1]} 36... b2 {[%clk 0:00:46.5]} 37. Kd6 {[%clk 0:00:24]} 37...
Kg6 {[%clk 0:00:46.3]} 38. Ke7 {[%clk 0:00:24.9]} 38... b1=Q {[%clk 0:00:46.7]}
0-1

[Event "*** Titled Tuesday Blitz"]
[Site "Chess.com"]
[Date "2021.03.30"]
[Round "7"]
[White "FMalexhdez"]
[Black "xozr"]
[Result "0-1"]
[WhiteElo "2221"]
[BlackElo "2334"]
[TimeControl "180+1"]
[EndTime "11:17:34 PDT"]
[Termination "xozr won on time"]

1. e4 {[%clk 0:03:00.9]} 1... c5 {[%clk 0:02:58.3]} 2. Nf3 {[%clk 0:03:00.8]}
2... Nc6 {[%clk 0:02:58.7]} 3. d4 {[%clk 0:03:01.4]} 3... cxd4 {[%clk
0:02:59.6]} 4. Nxd4 {[%clk 0:03:01.5]} 4... g6 {[%clk 0:03:00.5]} 5. Nc3 {[%clk
0:03:00.9]} 5... Bg7 {[%clk 0:03:00.5]} 6. Nb3 {[%clk 0:03:01.4]} 6... Qa5
{[%clk 0:02:56.8]} 7. Bd2 {[%clk 0:02:51.1]} 7... Qd8 {[%clk 0:02:40.6]} 8. Be2
{[%clk 0:02:45.6]} 8... Nf6 {[%clk 0:02:40.3]} 9. O-O {[%clk 0:02:44]} 9... d5
{[%clk 0:02:39.3]} 10. exd5 {[%clk 0:02:41.4]} 10... Nxd5 {[%clk 0:02:40.2]} 11.
Nxd5 {[%clk 0:02:41.3]} 11... Qxd5 {[%clk 0:02:40.9]} 12. c3 {[%clk 0:02:40.1]}
12... O-O {[%clk 0:02:39.5]} 13. Be3 {[%clk 0:02:38.1]} 13... Be6 {[%clk
0:02:34.3]} 14. Qxd5 {[%clk 0:02:35.5]} 14... Bxd5 {[%clk 0:02:35.2]} 15. Rfd1
{[%clk 0:02:35.2]} 15... Rfd8 {[%clk 0:02:33.8]} 16. Nc5 {[%clk 0:02:31.5]}
16... b6 {[%clk 0:02:27.1]} 17. Nd3 {[%clk 0:02:30.5]} 17... Bc4 {[%clk
0:02:22.5]} 18. Nf4 {[%clk 0:02:30.2]} 18... Bxe2 {[%clk 0:02:21.3]} 19. Nxe2
{[%clk 0:02:29.9]} 19... e5 {[%clk 0:02:20.9]} 20. f3 {[%clk 0:02:22.7]} 20...
h6 {[%clk 0:02:15.4]} 21. a4 {[%clk 0:02:20.7]} 21... f5 {[%clk 0:02:14.9]} 22.
Kf1 {[%clk 0:02:13]} 22... Kf7 {[%clk 0:02:12.5]} 23. Ke1 {[%clk 0:02:12.2]}
23... Ke6 {[%clk 0:02:12.1]} 24. Rxd8 {[%clk 0:02:10.7]} 24... Rxd8 {[%clk
0:02:13]} 25. Rd1 {[%clk 0:02:10.5]} 25... Rxd1+ {[%clk 0:02:12.1]} 26. Kxd1
{[%clk 0:02:10.6]} 26... Na5 {[%clk 0:02:12]} 27. Kc2 {[%clk 0:02:07.8]} 27...
Nc4 {[%clk 0:02:11.6]} 28. Bc1 {[%clk 0:02:06.2]} 28... g5 {[%clk 0:02:08]} 29.
b3 {[%clk 0:02:02]} 29... Nd6 {[%clk 0:02:07.9]} 30. c4 {[%clk 0:01:59.1]} 30...
e4 {[%clk 0:02:07.6]} 31. fxe4 {[%clk 0:01:56.5]} 31... Nxe4 {[%clk 0:02:08.5]}
32. b4 {[%clk 0:01:37.4]} 32... f4 {[%clk 0:01:49.2]} 33. Kd3 {[%clk 0:01:36.1]}
33... Nf2+ {[%clk 0:01:47.1]} 34. Kc2 {[%clk 0:01:24]} 34... Ng4 {[%clk
0:01:44.7]} 35. h3 {[%clk 0:01:22.5]} 35... Ne5 {[%clk 0:01:44.5]} 36. Nd4+
{[%clk 0:01:12.6]} 36... Kd7 {[%clk 0:01:41.6]} 37. c5 {[%clk 0:01:08.1]} 37...
bxc5 {[%clk 0:01:37.1]} 38. bxc5 {[%clk 0:01:07.5]} 38... Nc6 {[%clk 0:01:32.2]}
39. Nb5 {[%clk 0:01:02.1]} 39... a6 {[%clk 0:01:27.9]} 40. Nc3 {[%clk
0:01:02.4]} 40... Nb4+ {[%clk 0:01:23.1]} 41. Kd2 {[%clk 0:00:57]} 41... Bxc3+
{[%clk 0:01:18.9]} 42. Kxc3 {[%clk 0:00:55.3]} 42... Na2+ {[%clk 0:01:19.8]} 43.
Kc2 {[%clk 0:00:55.5]} 43... Nxc1 {[%clk 0:01:20.7]} 44. Kxc1 {[%clk 0:00:55.8]}
44... Kc6 {[%clk 0:01:21.6]} 45. Kd2 {[%clk 0:00:49.6]} 45... Kxc5 {[%clk
0:01:22.5]} 46. Kc3 {[%clk 0:00:49.7]} 46... h5 {[%clk 0:01:20.6]} 0-1

[Event "*** Titled Tuesday Blitz"]
[Site "Chess.com"]
[Date "2021.03.30"]
[Round "7"]
[White "ymoy"]
[Black "StockholmMissile"]
[Result "1-0"]
[WhiteElo "2735"]
[BlackElo "2563"]
[TimeControl "180+1"]
[EndTime "11:17:35 PDT"]
[Termination "ymoy won on time"]

1. e4 {[%clk 0:03:00.9]} 1... e5 {[%clk 0:02:59.8]} 2. Nf3 {[%clk 0:03:00.5]}
2... Nc6 {[%clk 0:03:00.1]} 3. d4 {[%clk 0:02:59.5]} 3... exd4 {[%clk 0:03:00]}
4. Bc4 {[%clk 0:03:00]} 4... Bc5 {[%clk 0:03:00]} 5. O-O {[%clk 0:02:59.6]} 5...
Nf6 {[%clk 0:03:00.2]} 6. e5 {[%clk 0:02:59.1]} 6... d5 {[%clk 0:03:00.6]} 7.
exf6 {[%clk 0:02:59.5]} 7... dxc4 {[%clk 0:03:00.8]} 8. fxg7 {[%clk 0:03:00.2]}
8... Rg8 {[%clk 0:03:01.1]} 9. Bg5 {[%clk 0:03:00.8]} 9... Qd6 {[%clk
0:02:51.6]} 10. Nbd2 {[%clk 0:02:57.5]} 10... Qg6 {[%clk 0:02:11.5]} 11. Ne4
{[%clk 0:02:50.3]} 11... Be7 {[%clk 0:02:10.6]} 12. Re1 {[%clk 0:02:43.3]} 12...
Be6 {[%clk 0:02:09.1]} 13. Nh4 {[%clk 0:02:35.9]} 13... Qxg7 {[%clk 0:02:04.6]}
14. Bxe7 {[%clk 0:02:29.7]} 14... Nxe7 {[%clk 0:02:01.9]} 15. Qf3 {[%clk
0:02:27.1]} 15... O-O-O {[%clk 0:01:48.5]} 16. Nc5 {[%clk 0:02:23.1]} 16... Nc6
{[%clk 0:01:38.9]} 17. Rxe6 {[%clk 0:02:05.9]} 17... fxe6 {[%clk 0:01:39.8]} 18.
Nxe6 {[%clk 0:02:06]} 18... Qe7 {[%clk 0:01:21.5]} 19. Nxd8 {[%clk 0:02:04.5]}
19... Rxd8 {[%clk 0:01:22.4]} 20. Qf5+ {[%clk 0:02:00.6]} 20... Kb8 {[%clk
0:01:20.8]} 21. Nf3 {[%clk 0:02:00]} 21... d3 {[%clk 0:01:19.3]} 22. cxd3 {[%clk
0:01:57.2]} 22... cxd3 {[%clk 0:01:20.2]} 23. Rd1 {[%clk 0:01:57.1]} 23... Nd4
{[%clk 0:00:34.5]} 24. Qxd3 {[%clk 0:01:53.1]} 24... c5 {[%clk 0:00:22.3]} 25.
Nxd4 {[%clk 0:01:50.3]} 25... Rxd4 {[%clk 0:00:21.7]} 26. Qf3 {[%clk 0:01:50.1]}
26... Rxd1+ {[%clk 0:00:16.2]} 27. Qxd1 {[%clk 0:01:51]} 27... Kc7 {[%clk
0:00:15.9]} 28. h3 {[%clk 0:01:47.9]} 28... b5 {[%clk 0:00:15.9]} 29. Qd2 {[%clk
0:01:44.5]} 29... Kb6 {[%clk 0:00:15.4]} 30. a3 {[%clk 0:01:42.1]} 30... c4
{[%clk 0:00:15]} 31. f4 {[%clk 0:01:39.8]} 31... a5 {[%clk 0:00:13.4]} 32. Kf2
{[%clk 0:01:37.6]} 32... b4 {[%clk 0:00:13.1]} 33. axb4 {[%clk 0:01:28.5]} 33...
axb4 {[%clk 0:00:14]} 34. Qe3+ {[%clk 0:01:20]} 34... Qc5 {[%clk 0:00:07.8]} 35.
Qxc5+ {[%clk 0:01:19]} 35... Kxc5 {[%clk 0:00:08.7]} 36. Ke3 {[%clk 0:01:19.8]}
36... Kb5 {[%clk 0:00:06.1]} 37. f5 {[%clk 0:01:18.1]} 37... Ka4 {[%clk
0:00:04.3]} 38. f6 {[%clk 0:01:07.6]} 38... c3 {[%clk 0:00:04.4]} 39. bxc3
{[%clk 0:01:08.5]} 39... b3 {[%clk 0:00:04.2]} 40. Kd2 {[%clk 0:01:08.8]} 40...
Ka3 {[%clk 0:00:04.1]} 41. f7 {[%clk 0:01:08.8]} 1-0